Cogmind - Beta 14 @@@ ROGUE MODE // 2024.08.26 @ 19:12:50 Player: star Result: Destroyed by EJ-5E4(R) with Subdweller Laser Performance ------------- Evolutions (0) 0 Regions Visited (2) 400 Robots Destroyed (22) 110 Value Destroyed (782) 782 Prototype IDs (2) 40 Alien Tech Used (0) 0 Bonus (0) 0 TOTAL SCORE: 1332 Bonus ------- None Cogmind --------- Core Integrity 0/250 Matter 69/300 Energy 85/100 System Corruption 0% Temperature Cool (6) Movement Walking (330) Ox3 Location -10/Subcaves Parts ------- > --- POWER (1) -------- (None) > --- PROPULSION (2) --- Aluminum Leg > --- UTILITY (2) ------ Large Storage Unit Makeshift Thermal Plating > --- WEAPON (2) ------- Barrage Gun Subdweller Shrapnel Launcher > --- INVENTORY (15) --- Ion Engine Aluminum Leg Aluminum Leg Aluminum Leg Small Storage Unit Small Matter Pod (50) Small Matter Pod (50) Light Armor Plating Light Armor Plating Medium Armor Plating Shield Generator Shield Generator Subdweller Shrapnel Launcher Enhanced Flamer Peak State ------------ > --- POWER ------------ Ion Engine > --- PROPULSION ------- Aluminum Leg Aluminum Leg > --- UTILITY ---------- Large Storage Unit Makeshift Thermal Plating > --- WEAPON ----------- Barrage Gun Barrage Gun > --- INVENTORY -------- Ion Engine Aluminum Leg Aluminum Leg Aluminum Leg Small Storage Unit Small Matter Pod Small Matter Pod Light Armor Plating Light Armor Plating Medium Armor Plating Shield Generator Shield Generator Subdweller Shrapnel Launcher Subdweller Shrapnel Launcher Enhanced Flamer [Rating: 16] Favorites ----------- Power Ion Engine Engine Ion Engine Propulsion Aluminum Leg Leg Aluminum Leg Utility Large Storage Unit Device Improved Heat Sink Storage Large Storage Unit Protection Medium Armor Plating Weapon Barrage Gun Energy Gun Medium Laser Ballistic Gun Barrage Gun Launcher Subdweller Shrapnel Launcher Special Weapon Enhanced Flamer Build | -11 -10 -10 ------- Run | Yrd Mat Sub Slots Evolved . | . . . Power . | . . . Propulsion . | . . . Utility . | . . . Weapon . | . . . Parts Attached 33 | 6 14 13 Power 2 | 1 1 . Engine 2 | 1 1 . Core . | . . . Reactor . | . . . Propulsion 9 | 2 4 3 Treads . | . . . Leg 9 | 2 4 3 Wheel . | . . . Hover . | . . . Flight . | . . . Utility 8 | 1 5 2 Device 1 | . 1 . Storage 3 | 1 2 . Processor . | . . . Hackware . | . . . Protection 4 | . 2 2 Artifact . | . . . Weapon 14 | 2 4 8 Energy Gun 4 | 1 2 1 Energy Cannon . | . . . Ballistic Gun 8 | 1 2 5 Ballistic Cannon . | . . . Launcher 1 | . . 1 Special Weapon 1 | . . 1 Impact Weapon . | . . . Slashing Weapon . | . . . Piercing Weapon . | . . . Special Melee Weapon . | . . . Unidentified Prototypes . | . . . Parts Lost 9 | . 3 6 Power 1 | . . 1 Propulsion 2 | . . 2 Utility 2 | . 1 1 Weapon 4 | . 2 2 Highest Loss Streak 3 | . 2 3 To Critical Strikes . | . . . Average Slot Usage (%) 97 | . 97 98 Engine 14 | . 14 14 Leg 27 | . 28 27 Device 4 | . 6 . Storage 14 | . 14 14 Protection 8 | . 5 13 Energy Gun 9 | . 13 4 Ballistic Gun 16 | . 13 22 Peak Build Rating 16 | 6 11 16 Average Rating 10 | 4 8 13 On Entrance 5 | . 6 10 Naked Turns . | . . . Heaviest Build 38 | 13 38 38 Greatest Support 20 | 20 20 20 Greatest Overweight (x) 3 | . 1 3 Average Overweight (x) . | . . 1 Largest Inventory Capacity 15 | 8 15 15 Average Capacity 13 | 7 13 15 Most Carried 15 | 1 15 15 Average Carried 11 | . 9 14 Final Capacity 15 | 8 15 15 Final Carried 15 | 1 15 14 Class Distribution -------------------- 86% | Mutant 13% | Scavenger-Mutant Dominant Class ---------------- Mutant | -10/Materials Mutant | -10/Subcaves Resources | -11 -10 -10 ----------- Run | Yrd Mat Sub Matter Collected 835 | 164 411 260 Remotely . | . . . Salvage Created 926 | . 608 318 Parts 47 | . 28 19 Haulers Intercepted 2 | . 2 . Recyclers Shooed 1 | . 1 . Parts Field Recycled . | . . . Retrieved Matter . | . . . Parts Self-Destructed 19 | . . 19 Prevented . | . . . Kills | -11 -10 -10 ------- Run | Yrd Mat Sub Combat Hostiles Destroyed 20 | . 11 9 Guns 16 | . 11 5 AOE 4 | . . 4 Classes Destroyed 4 | . 3 1 Hauler 2 | . 2 . Grunt 11 | . 9 2 Sentry 1 | . . 1 Subdweller 8 | . 2 6 Best Kill Streak 4 | . 4 4 Combat Bots Only 4 | . 4 4 Max Kills in Single Turn 2 | . 1 2 Gunslinging 1 | . . 1 Exploded 2 | . . 2 Melee . | . . . Uniques/NPCs Destroyed . | . . . Combat | -11 -10 -10 -------- Run | Yrd Mat Sub Hostile Shots Fired 126 | . 85 41 Missed 35 | . 21 14 Damage Taken 1511 | . 887 624 Core 261 | . 151 110 Absorbed by Shields . | . . . Ignored by Resistances 3 | . . 3 Core Remaining (%) 100 | 100 . . Volleys Fired 101 | . 60 41 Largest 2 | . 2 2 Hottest 110 | . 70 110 Shots Fired 199 | . 119 80 Gun 192 | . 119 73 Cannon . | . . . Launcher 7 | . . 7 Special . | . . . Kinetic 126 | . 60 66 Thermal 43 | . 35 8 Explosive . | . . . Electromagnetic 30 | . 24 6 Robot Hit Streak 24 | . 24 12 Robot Miss Streak 2 | . 2 2 Penetration Max . | . . . Secondary Targets 1 | . . 1 Max Gunslinging Chain 1 | . . 1 Shots Hit Robots 121 | . 85 36 Core Hits 47 | . 31 16 Critical Kills 1 | . . 1 Critical Parts Destroyed . | . . . Critical Strikes 6 | . 4 2 Burn 4 | . 4 . Destroy 2 | . . 2 Melee Attacks . | . . . Impact . | . . . Slashing . | . . . Piercing . | . . . Sneak Attacks . | . . . Combat Hostiles . | . . . Follow-up Attacks . | . . . Damage Inflicted 1913 | . 902 1011 Guns 1412 | . 902 510 Cannons . | . . . Explosions 501 | . . 501 Melee . | . . . Ramming . | . . . Kinetic 1263 | . 349 914 Thermal 370 | . 297 73 Explosive . | . . . Electromagnetic 280 | . 256 24 Impact . | . . . Slashing . | . . . Piercing . | . . . Highest Corruption . | . . . Average Corruption . | . . . Corruption Purged . | . . . Corruption Blocked . | . . . Overload Shots . | . . . Overflow Damage . | . . . Projectiles . | . . . Explosions . | . . . Melee . | . . . Knockbacks . | . . . Impact . | . . . Kinetic . | . . . Secondary . | . . . Self-Inflicted Damage 13 | . . 13 Shots 1 | . . 1 Rammed . | . . . Targets Rammed . | . . . Kicked . | . . . Crushed . | . . . Highest Temperature 219 | . 219 6 Average Temperature 68 | . 71 3 Received Heat Transfer 561 | . 420 141 Siege Activations . | . . . Robots Corrupted . | . . . Combat Hostiles . | . . . Parts Fried . | . . . Impact Corruptions . | . . . Robots Melted . | . . . Combat Hostiles . | . . . Parts Melted 5 | . 5 . Heat Transferred 1296 | . 1184 112 Parts Sabotaged . | . . . Parts Stolen . | . . . Parts Stripped . | . . . Power Chain Reactions . | . . . Alert | -11 -10 -10 ------- Run | Yrd Mat Sub Peak Influence 160 | . 160 . Initial . | . . . Average 70 | . 74 . Maximum Alert Level . | . . . Low Security (%) 100 | 100 100 . Level 1 . | . . . Level 2 . | . . . Level 3 . | . . . Level 4 . | . . . Level 5 . | . . . High Security . | . . . Max Security . | . . . Squads Dispatched 1 | . 1 . Investigation 1 | . 1 . Extermination . | . . . Reinforcement . | . . . Assault . | . . . Garrison . | . . . Intercept . | . . . Searches Triggered . | . . . Construction Impeded . | . . . Haulers Reinforced . | . . . Active Scanning Responses . | . . . Cargo Convoy Interrupts . | . . . Stealth | -11 -10 -10 --------- Run | Yrd Mat Sub Distress Signals 2 | . 2 . Communications Jammed . | . . . Distress Signals . | . . . Times Spotted 32 | . 20 12 Peak Tracking Total 5 | . 5 3 Tactical Retreats 3 | . 3 . Traps | -11 -10 -10 ------- Run | Yrd Mat Sub Traps Triggered 1 | . 1 . Indirectly . | . . . Trap Hack Attempts . | . . . Triggered . | . . . Disarmed . | . . . Reprogrammed . | . . . Reused . | . . . Traps Extracted . | . . . Installed . | . . . Triggered . | . . . Machines | -11 -10 -10 ---------- Run | Yrd Mat Sub Machines Disabled . | . . . Max in Single Turn . | . . . Machines Repaired . | . . . Machines Dismantled . | . . . Machines Sabotaged . | . . . Overloaded Fab Kills . | . . . Hacking | -11 -10 -10 --------- Run | Yrd Mat Sub Machines Accessed 4 | . 4 . Terminals 4 | . 4 . Fabricators . | . . . Repair Stations . | . . . Recycling Units . | . . . Scanalyzers . | . . . Garrison Access . | . . . Total Hacks 17 | . 17 . Successful 11 | . 11 . Failed 6 | . 6 . Catastrophic . | . . . Database Lockouts . | . . . Manual 14 | . 14 . Terminals 17 | . 17 . Fabricators . | . . . Repair Stations . | . . . Recycling Units . | . . . Scanalyzers . | . . . Garrison Access . | . . . Terminal Hacks 3 | . 3 . Prototype ID Bank 1 | . 1 . Alert Level 1 | . 1 . Hauler Manifests 1 | . 1 . Fabricator Hacks . | . . . Repair Station Hacks . | . . . Recycling Unit Hacks . | . . . Scanalyzer . | . . . Garrison Access Hacks . | . . . Unauthorized Hacks 8 | . 8 . Terminals 8 | . 8 . Botnet 4 | . 4 . Skim 4 | . 4 . Fabricators . | . . . Repair Stations . | . . . Recycling Units . | . . . Scanalyzers . | . . . Garrison Access . | . . . Data Cores Recovered . | . . . Used . | . . . Hacking Detections 2 | . 2 . Full Trace Events . | . . . Feedback Events . | . . . Feedback Blocked . | . . . Robot Schematics Acquired . | . . . Robots Built . | . . . Authchips . | . . . Time . | . . . Total Robot Build Rating . | . . . Part Schematics Acquired . | . . . Parts Built . | . . . Authchips . | . . . Time . | . . . Total Part Build Rating . | . . . Parts Repaired . | . . . Time . | . . . Parts Recycled . | . . . Recycled Matter . | . . . Retrieved Matter . | . . . Retrieved Components . | . . . Parts Scanalyzed . | . . . Part Schematics Acquired . | . . . Parts Damaged . | . . . Bothacking | -11 -10 -10 ------------ Run | Yrd Mat Sub Used RIF Installer . | . . . Robots Hacked . | . . . Non-combat . | . . . Combat . | . . . Robot Hacks Applied . | . . . Relay Couplers Released . | . . . Fabnet Peak Effective % . | . . . Robots Rewired . | . . . Allies Hacked . | . . . Hacks Repelled . | . . . Allies | -11 -10 -10 -------- Run | Yrd Mat Sub Total Allies . | . . . Largest Group . | . . . Highest-Rated Group . | . . . Highest-Rated Ally . | . . . Total Orders . | . . . Ally Attacks . | . . . Total Damage . | . . . Kills . | . . . Allies Corrupted . | . . . Allies Melted . | . . . Intel | -11 -10 -10 ------- Run | Yrd Mat Sub Robot Analysis Total . | . . . Derelict Logs Recovered . | . . . Drone Launches . | . . . Drone Recoveries . | . . . Exploration | -11 -10 -10 ------------- Run | Yrd Mat Sub Turns Passed 1864 | 52 1087 725 Spaces Moved 803 | 37 459 307 Core 5 | 5 . . Treads . | . . . Legs 798 | 32 459 307 Wheels . | . . . Hover . | . . . Flight . | . . . Fastest Speed 50 | 50 120 190 Average Speed 178 | 110 176 190 Slowest Speed 330 | 120 190 330 Overloaded Moves . | . . . Propulsion Burnouts . | . . . Robots Hopped . | . . . Cave-ins Triggered . | . . . Exploration Rate (%) 28 | 5 53 27 Regions Visited 2 Branch Regions 1 Pre-discovered Areas . | . . . Known Exits Taken . | . . . Unknown Exits Taken 2 | 1 1 . Scrap Searched 11 | . . 11 Spaces Dug . | . . . Terrain Destroyed 83 | . . 83 Melee . | . . . Projectile . | . . . AOE 83 | . . 83 Terrain Rammed . | . . . Walls Destroyed . | . . . Machines Disabled . | . . . Actions | -11 -10 -10 --------- Run | Yrd Mat Sub Total 1037 | 45 623 369 Wait 85 | 2 78 5 Move 801 | 36 458 307 Hop . | . . . Pick Up 14 | 1 11 2 Fast Attach 9 | 6 2 1 Attach 8 | . 4 4 Detach . | . . . Swap 16 | . 8 8 Drop 3 | . 2 1 Fire 101 | . 60 41 Melee . | . . . Ram . | . . . Kick . | . . . Crush . | . . . Escape Stasis . | . . . Rewire . | . . . Trap . | . . . Miscellaneous . | . . . Route ------- -11/Scrapyard -10/Materials (discovered 3 exits: [*Mat] / [*Min] / [*Sub]) -10/Subcaves (discovered 1 exit: [*Mat]) History --------- Turn | Location | Event 4 | -11/Scrapyard | Discovered new exit (range 15) 53 | -11/Scrapyard | Entered Materials 319 | -10/Materials | Build established: Mutant 438 | -10/Materials | Discovered new exit (range 16) 684 | -10/Materials | Discovered new exit (range 10) 852 | -10/Materials | Discovered new exit (range 12) 1053 | -10/Materials | Derelicts attacked the area 1085 | -10/Materials | Core integrity fell below 50% 1140 | -10/Materials | Entered Subcaves 1184 | -10/Subcaves | Discovered new exit (range 7) 1339 | -10/Subcaves | Disturbed a concealed Subdweller 1531 | -10/Subcaves | Shifting Twisted Machinery released Sub. Laser 1538 | -10/Subcaves | Shifting Twisted Machinery released Piercing Trap 1588 | -10/Subcaves | Shifting Twisted Machinery released Sub. Power Source 1764 | -10/Subcaves | Shifting Twisted Machinery released Sub. Machine Gun 1852 | -10/Subcaves | Ambushed by Subdweller buried in earth 1855 | -10/Subcaves | Core integrity fell below 20% 1862 | -10/Subcaves | Ambushed by Subdweller buried in earth 1865 | -10/Subcaves | Destroyed by EJ-5E4(R) with Subdweller Laser Last Messages --------------- 01649_ Found Piercing Trap. 01649_ Found 50 Matter. 01650_ Acquired 3 matter. 01653_ Acquired Sub. Shrapnel Launcher. 01658_ Acquired Mak. Thermal Plating. 01659_ Acquired 10 matter. Sub. Machine Gun falls loose from the Twisted Machinery. 01778_ Acquired 6 matter. 01846_ HV-DV7(R) destroyed. 01853_ ZI-UB0(R): "NOSTUCKSUB!" 01854_ I2-ZHM(R) destroyed. 01857_ T2-T11(R): "ARGHSUB!" 01857_ S1-195(R): "ARGHSUB!" 01857_ ZI-UB0(R) destroyed. 01857_ S1-195(R) destroyed. 01858_ Barrage Gun destroyed. 01861_ AT-AI8(R): "ARGHSUB!" 01862_ Ion Engine destroyed. 01862_ Aluminum Leg destroyed. 01863_ EJ-5E4(R): "ARGHSUB!" Map ----- +----------------------------------------------------+ | ?????????????????????????????????????????????????? | | ?????????????????????????????????????????????????? | | ?????????????????????????????????????????????????? | | ?????????????????????????????????????????????????? | | ?????????????????????????????????????????????????? | | ?????????????????????????????????????????????????? | | ?????????????????????????????????????????????????? | | ?????????????????????????????????????????????????? | | ?????????????????????????????????????????????????? | | ?????????????????????????????????????????????????? | | #?##??##??????????????? ; ?????????????????????? | | ## ##"""??#???????????# ???????????????????? | | "" """" ##??????????# R #????????????????? | | "" """"" #?????????? "??????????????? | | *#"""""""#?????????### "??????????????? | | # """""" #??????????# "#?????????????? | | """ ""#??????????# & ""#?????????????? | | " ""####??????## "??????????????? | | ##" """""#??????? "???????????????? | | ###"" "" ""#????????# & ????????????????? | | #?# [ "##???????## % ?????????????????? | | #?## #####????# =R #??????????????????? | | #??### #????# #??????????????????? | | #???## #????# ##?????????????????? | | #???## # ##????# #?????????????????? | | """????## # ###??# R @ #??????????????????? | | """?????### ## ##### #??????????????????? | | "??????# ;#??????????????????? | | %#??????## ??????????????? | | # ##???????# ## #### ??????????? | | ?#?????????#######?#; ; # %???????????? | | ?????????????????? ;;## ???????????? | | ????????????????? # ; #? ##??????????? | | ???????????????? ## ;;;; #?? ##???????????? | | ??????????????? ? ; #??#### #????????????? | | ?????????????? ? #######??????? ????????????? | | ?????????????? ?? #??????????????? ????????????? | | ?????????????????###?????????????????????????????? | | ?????????????????????????????????????????????????? | | ?????????????????????????????????????????????????? | | ?????????????????????????????????????????????????? | | ?????????????????????????????????????????????????? | | ?????????????????????????????????????????????????? | | ?????????????????????????????????????????????????? | | ?????????????????????????????????????????????????? | | ?????????????????????????????????????????????????? | | ?????????????????????????????????????????????????? | | ?????????????????????????????????????????????????? | | ?????????????????????????????????????????????????? | | ?????????????????????????????????????????????????? | +----------------------------------------------------+ Best States ------------- Heat Dissipation 39 Energy Generation 10 Energy Capacity 250 Matter Stores 300 Matter Capacity 300 Sight Range 16 Terrain Scan Density 10 Armor Coverage 225 Resistance: TH 10 Evasion (%) 55 Item Schematics ----------------- None Robot Schematics ------------------ None Fabricated ------------ Nothing Alien Tech Used ----------------- None Achievements -------------- None Challenges ------------ None Game ------ Seed ShockAssemblyNetwork Manual? 0 Play Time 00:14:04 Cumulative 56.2 hours Start 2024.08.26 @ 18:55:07 End 2024.08.26 @ 19:12:50 Sessions 1 Manual Loads 0 Difficulty Rogue Special Mode None Game No. 103 Rogue 103 Adventurer 0 Explorer 0 Win Type - Total 0 Types 0/0/0/0/0/0/0/0/0 Lore% 22 Gallery% 43 Achievement% 35 Wizard Run 0 Options --------- Layout 0 ASCII 0 Keyboard 0 Movement Numpad Keybinds 0 Fullscreen 2 Font 18/SmallcapsGlow Map View 76x50 Zoom Use 0% Tactical HUD 1 Map Filters NONE Filters NONE Steam 1 RUN: b8f18208-4c2e-4f7e-8d85-02326255667d